bitfinex/quotes_SOLUSD_20250210
["timestamp","ask_amount","ask_price","bid_price","bid_amount"]
[1739230422835,7.86678,199.77,199.76,0.0001]
[1739230424255,6.86678,199.77,199.76,0.0001]
[1739230424429,7.86678,199.77,199.76,0.0001]
[1739230424634,8.86678,199.77,199.76,0.0001]
[1739230424857,8.89678,199.77,199.76,0.0001]
[1739230425356,8.89678,199.77,199.72,0.063]
[1739230425357,21.0,199.76,199.72,0.063]
[1739230425531,0.93899224,199.75,199.72,0.063]
[1739230426653,5.0065,199.74,199.72,0.063]
[1739230426955,0.93897476,199.73,199.72,0.063]
[1739230428154,5.0067,199.73,199.72,0.063]
[1739230428940,5.0065,199.74,199.72,0.063]
[1739230429153,0.93897985,199.73,199.72,0.063]
[1739230430769,5.94567985,199.73,199.72,0.063]
[1739230431169,5.0067,199.73,199.72,0.063]
[1739230431964,5.0065,199.74,199.72,0.063]
[1739230432265,0.93883909,199.73,199.72,0.063]
[1739230433350,5.94553909,199.73,199.72,0.063]
[1739230434643,5.0065,199.74,199.72,0.063]
[1739230437354,20.96884599,199.76,199.72,0.063]
[1739230437558,5.0062,199.75,199.72,0.063]
[1739230438663,0.03,199.76,199.72,0.063]
[1739230439368,5.0361,199.76,199.72,0.063]
[1739230439670,0.93878289,199.75,199.72,0.063]
[1739230441566,5.0065,199.74,199.72,0.063]
[1739230442268,20.03,199.76,199.72,0.063]
[1739230442473,5.0361,199.76,199.72,0.063]
[1739230443147,0.93874443,199.75,199.72,0.063]
[1739230443360,5.0065,199.74,199.72,0.063]
[1739230443553,0.93890985,199.73,199.72,0.063]
[1739230444449,5.0065,199.74,199.72,0.063]
[1739230446271,0.03,199.76,199.72,0.063]
[1739230446461,5.0062,199.75,199.72,0.063]
[1739230446784,0.03,199.76,199.72,0.063]
[1739230451554,20.03,199.76,199.72,0.063]
[1739230451855,0.93885652,199.75,199.72,0.063]
[1739230452966,5.0065,199.74,199.72,0.063]
[1739230453576,0.93887765,199.73,199.72,0.063]
[1739230454093,5.94557765,199.73,199.72,0.063]
[1739230455053,5.0067,199.73,199.72,0.063]
[1739230456087,0.93890309,199.75,199.72,0.063]
[1739230456257,5.0065,199.74,199.72,0.063]
[1739230460473,20.03,199.76,199.72,0.063]
[1739230460474,5.97504041,199.76,199.72,0.063]
[1739230461272,20.0,199.73,199.72,0.063]
[1739230461464,20.93899618,199.73,199.72,0.063]
[1739230462365,25.94569618,199.73,199.72,0.063]
[1739230463486,25.0067,199.73,199.72,0.063]
[1739230469384,5.97506861,199.76,199.72,0.063]
[1739230469705,5.0362,199.76,199.72,0.063]
[1739230470993,0.03,199.76,199.72,0.063]
[1739230471191,0.96872071,199.76,199.72,0.063]
[1739230472792,20.96872071,199.76,199.72,0.063]
[1739230473008,5.0062,199.75,199.72,0.063]
[1739230473304,0.93884368,199.74,199.72,0.063]
[1739230474800,5.0065,199.74,199.72,0.063]
[1739230475896,5.0362,199.76,199.72,0.063]
[1739230476196,25.0362,199.76,199.72,0.063]
[1739230477381,25.97488703,199.76,199.72,0.063]
[1739230479486,25.0362,199.76,199.72,0.063]
[1739230480901,0.93877512,199.75,199.72,0.063]
[1739230481106,5.0065,199.74,199.72,0.063]
[1739230482698,20.96878836,199.76,199.72,0.063]
[1739230482895,5.0062,199.75,199.72,0.063]
[1739230486803,0.93882494,199.74,199.72,0.063]
[1739230487989,5.94503582,199.75,199.72,0.063]
[1739230488908,5.0062,199.75,199.72,0.063]
[1739230489213,0.03,199.76,199.72,0.063]
[1739230490019,5.036,199.76,199.72,0.063]
[1739230490320,0.93867336,199.75,199.72,0.063]
[1739230491095,5.0065,199.74,199.72,0.063]
[1739230494919,0.93885215,199.73,199.72,0.063]
[1739230496110,5.0065,199.74,199.72,0.063]
[1739230497139,0.93887828,199.73,199.72,0.063]
[1739230497639,5.9453848,199.74,199.72,0.063]
[1739230498619,5.0065,199.74,199.72,0.063]
[1739230499823,5.0062,199.75,199.72,0.063]
[1739230499999,20.03,199.76,199.72,0.063]
[1739230501527,0.03,199.76,199.72,0.063]
[1739230501926,20.03,199.76,199.72,13.47484853]
[1739230502224,25.036,199.76,199.72,13.47484853]
[1739230502727,0.03,199.76,199.72,13.47484853]
[1739230503098,0.03,199.76,199.72,13.85562322]
[1739230503303,0.03,199.76,199.72,18.86252322]
[1739230504507,0.03,199.76,199.72,18.48174853]
[1739230505510,0.03,199.76,199.74,13.41184853]
[1739230505911,0.03,199.76,199.75,13.7921097]
[1739230506211,0.03,199.76,199.75,13.41184853]
[1739230507327,0.03,199.76,199.75,18.41804853]
[1739230508327,0.03,199.76,199.75,13.41184853]
[1739230513135,20.03,199.76,199.72,0.063]
[1739230514917,25.0361,199.76,199.72,0.063]
[1739230515116,0.03,199.76,199.72,0.063]
[1739230515324,5.0361,199.76,199.72,0.063]
[1739230516332,0.03,199.76,199.72,0.063]
[1739230518415,20.03,199.76,199.72,0.063]
[1739230519931,5.0062,199.75,199.72,0.063]
[1739230525828,0.03,199.76,199.72,0.063]
[1739230526032,0.03,199.76,199.73,13.41184853]
[1739230528441,0.03,199.76,199.73,18.41854853]
[1739230530519,0.03,199.76,199.73,99.61854853]
[1739230530836,0.03,199.76,199.73,94.61184853]
[1739230536655,0.03,199.76,199.73,81.2]
[1739230539452,0.03,199.76,199.74,13.41184853]
[1739230539738,0.03,199.76,199.74,13.79244568]
[1739230540718,0.03,199.76,199.75,18.41804853]
[1739230541520,0.03,199.76,199.75,99.61804853]
[1739230544665,0.03,199.77,199.76,13.91380853]
[1739230544956,0.03,199.77,199.76,95.4936252]
[1739230546227,0.03,199.77,199.76,100.4996252]
[1739230546428,0.03,199.77,199.76,100.11980853]
[1739230554643,0.03,199.77,199.76,100.18280853]
[1739230558727,0.03,199.77,199.76,101.18280853]
[1739230560231,0.03,199.77,199.76,100.18280853]
[1739230561766,0.03,199.77,199.76,101.18280853]
[1739230563562,0.03,199.77,199.76,100.18280853]
[1739230563767,0.03,199.77,199.76,101.18280853]
[1739230563967,0.03,199.79,199.78,34.91380853]
[1739230564183,0.03,199.79,199.78,35.29329925]
[1739230564468,0.03,199.79,199.78,116.49329925]
[1739230564666,0.03,199.79,199.78,116.11380853]
[1739230564865,0.03,199.79,199.78,115.11380853]
[1739230566171,0.03,199.79,199.78,120.11930853]
[1739230567673,0.03,199.79,199.78,121.11930853]
[1739230570050,0.03,199.79,199.78,122.11930853]
[1739230571885,0.03,199.79,199.78,121.11930853]
[1739230572192,0.03,199.79,199.78,122.11930853]
[1739230573287,0.03,199.79,199.78,120.11930853]
[1739230573463,0.03,199.79,199.78,119.86832853]
[1739230578203,0.03,199.79,199.78,120.86832853]
[1739230587271,0.0001,199.79,199.78,122.11930853]
[1739230587997,6.4436,199.88,199.83,20.0]
[1739230588299,1.5998,199.92,199.85,0.25098]
[1739230588601,1.5998,199.92,199.86,13.79106902]
[1739230589378,1.5998,199.92,199.88,13.41184853]
[1739230591207,1.5998,199.92,199.88,13.79107673]
[1739230591510,0.03,199.92,199.89,0.25098]
[1739230591723,0.03,199.92,199.9,13.79065981]
[1739230592786,0.03,199.92,199.91,18.41404853]
[1739230594421,0.03,199.92,199.91,99.86502853]
[1739230594610,0.03,199.92,199.91,101.11600853]
[1739230594913,0.03,199.92,199.91,102.11600853]
[1739230596412,0.03,199.92,199.91,99.99051853]
[1739230596730,0.03,199.92,199.91,94.86282853]
[1739230596900,0.03,199.92,199.91,94.99055494]
[1739230597212,0.03,199.92,199.91,94.61184853]
[1739230597415,0.03,199.92,199.91,81.2]
[1739230597605,0.03,199.92,199.83,85.25936296]
[1739230597809,6.414,199.91,199.83,81.2]
[1739230598009,6.414,199.91,199.84,13.41184853]
[1739230598214,1.5999,199.89,199.84,13.41184853]
[1739230598407,5.003,199.88,199.83,81.2]
[1739230598608,5.003,199.88,199.84,13.41184853]
[1739230599417,5.003,199.88,199.78,92.73792555]
[1739230599418,5.9411289,199.88,199.78,92.73792555]
[1739230599615,5.9411289,199.88,199.78,94.06332555]
[1739230600004,5.9411289,199.88,199.79,13.41184853]
[1739230600400,6.414,199.87,199.79,13.41184853]
[1739230600599,0.93826396,199.86,199.79,13.41184853]
[1739230602132,5.0037,199.85,199.79,13.41184853]
[1739230602435,0.93826396,199.86,199.79,13.41184853]
[1739230602932,0.93826396,199.86,199.79,18.41704853]
[1739230603134,6.414,199.87,199.79,18.79692308]
[1739230603633,6.414,199.87,199.79,18.41704853]
[1739230604526,6.414,199.87,199.81,13.41184853]
[1739230606040,6.414,199.87,199.83,13.41184853]
[1739230606742,6.414,199.87,199.85,13.41184853]
[1739230606918,1.5999,199.89,199.87,13.41184853]
[1739230607120,6.444,199.92,199.88,13.79096709]
[1739230607505,6.444,199.92,199.88,13.41184853]
[1739230608215,6.444,199.92,199.9,13.41184853]
[1739230608630,6.444,199.92,199.9,94.61184853]
[1739230611640,6.444,199.92,199.9,99.61414853]
[1739230612320,0.03,199.92,199.91,13.79095121]
[1739230612632,0.03,199.92,199.91,95.24193121]
[1739230613139,0.03,199.92,199.91,94.99095121]
[1739230613927,0.03,199.92,199.91,99.99315121]
[1739230614243,0.03,199.92,199.91,99.61404853]
[1739230616148,0.03,199.92,199.91,94.61184853]
[1739230618243,0.03,199.92,199.91,99.61404853]
[1739230625423,0.03,199.92,199.91,99.86502853]
[1739230625629,0.03,199.93,199.92,13.41184853]
[1739230625835,0.03,199.93,199.92,13.79020212]
[1739230626541,0.03,199.94,199.93,13.78831853]
[1739230626753,0.03,199.94,199.93,13.66282853]
[1739230627425,0.03,199.94,199.93,18.66452853]
[1739230627825,0.03,199.94,199.93,18.41354853]
[1739230629434,0.03,199.94,199.93,94.61184853]
[1739230629726,0.03,199.94,199.93,99.61354853]
[1739230630638,0.03,199.94,199.93,94.61184853]
[1739230632750,0.03,199.94,199.93,99.61354853]
[1739230633130,0.03,199.94,199.93,94.61184853]
[1739230638842,0.03,199.94,199.93,99.61354853]
[1739230639553,0.03,199.94,199.93,94.61184853]
[1739230643258,0.03,199.94,199.93,99.61354853]
[1739230643455,0.03,199.95,199.94,13.41184853]
[1739230643655,0.03,199.96,199.95,14.78831853]
[1739230643856,0.03,199.99,199.98,20.0]
[1739230644042,0.03,199.99,199.98,33.7896291]
[1739230644356,0.03,199.99,199.98,119.9901291]
[1739230644663,0.03,199.99,199.98,119.61234853]
[1739230645841,0.03,200.0,199.99,15.78831853]
[1739230646055,0.03,200.04,200.03,13.66282853]
[1739230646260,0.03,200.04,200.03,95.24021712]
[1739230647160,0.03,200.04,200.03,94.61184853]
[1739230647456,0.03,200.04,200.03,94.86282853]
[1739230647648,0.03,200.04,200.03,99.86202853]
[1739230648046,0.03,200.04,200.03,99.98751853]
[1739230648257,0.03,200.04,200.03,99.86202853]
[1739230648470,0.03,200.04,200.03,99.98751853]
[1739230648770,0.03,200.05,200.04,15.78831853]
[1739230649071,0.0001,200.05,200.04,97.49070924]
[1739230649635,0.0001,200.05,200.04,102.48970924]
[1739230649976,0.0001,200.05,200.04,101.11280853]
[1739230650340,0.0001,200.05,200.04,100.11280853]
[1739230653585,0.0001,200.05,200.04,99.98731853]
[1739230655175,0.0001,200.05,200.04,94.86282853]
[1739230655858,0.0001,200.05,200.04,99.86182853]
[1739230657780,0.0001,200.05,200.04,99.98731853]
[1739230658362,0.0001,200.05,200.04,99.86182853]
[1739230658563,0.0001,200.05,200.04,94.86282853]
[1739230659489,0.0001,200.05,200.04,99.86182853]
[1739230660167,0.0001,200.05,200.04,94.61184853]
[1739230662470,0.0001,200.05,200.04,0.063]
[1739230670817,20.0001,200.05,200.04,0.063]
[1739230671129,27.869,200.05,200.04,0.063]
[1739230671292,28.80664139,200.05,199.97,5.12319]
[1739230671488,28.80664139,200.05,199.93,86.2647]
[1739230671692,4.999,200.04,199.94,13.41184853]
[1739230671930,20.0,200.01,199.94,13.41184853]
[1739230672118,0.93762475,200.0,199.94,13.41184853]
[1739230672310,20.0,200.01,199.94,13.41184853]
[1739230672694,0.93762475,200.03,199.94,18.41324853]
[1739230673313,0.93748983,200.04,199.94,18.41324853]
[1739230673506,0.93748983,200.04,199.94,99.61324853]
[1739230674215,0.93748983,200.04,199.94,99.67624853]
[1739230676213,5.93648983,200.04,199.94,99.67624853]
[1739230677527,0.93748983,200.04,199.94,99.67624853]
[1739230678625,0.93748983,200.04,199.94,112.17994853]
[1739230678830,8.80646071,200.05,199.96,13.41184853]
[1739230679127,8.80646071,200.05,199.96,94.61184853]
[1739230679904,7.869,200.05,199.97,5.0007]
[1739230681133,0.93742523,200.04,199.97,5.0007]
[1739230681706,7.869,200.05,199.97,5.0007]
[1739230682339,20.0,200.02,199.96,81.2]
[1739230682504,0.93757939,200.01,199.96,81.2]
[1739230683004,0.93757939,200.01,199.96,86.2009]
[1739230683005,0.93769266,200.01,199.96,86.2009]
[1739230683227,20.0,200.0,199.96,81.2]
[1739230683429,20.93767531,199.99,199.96,81.2]
[1739230684710,5.93787531,199.99,199.96,81.2]
[1739230686834,5.93787531,199.99,199.96,81.263]
[1739230687634,5.93787531,199.99,199.96,0.063]
[1739230687635,5.0005,199.98,199.96,0.063]
[1739230687940,1.06340008,199.97,199.96,0.063]
[1739230688809,0.93791008,199.97,199.96,0.063]
[1739230689215,0.93777848,199.98,199.96,0.063]
[1739230689537,5.93827848,199.98,199.96,0.063]
[1739230690846,0.93777848,199.98,199.96,0.063]
[1739230691148,1.18882752,200.0,199.96,0.063]
[1739230692749,20.93769488,200.01,199.96,0.063]
[1739230693219,0.93769488,200.01,199.96,0.063]
[1739230693734,0.9375708,200.03,199.96,0.063]
[1739230693908,0.9375708,200.03,199.96,81.263]
[1739230694945,0.9375708,200.03,199.96,86.2638]
[1739230696754,0.96750436,200.04,199.96,86.2638]
[1739230697253,5.96650436,200.04,199.96,86.2638]
[1739230698348,0.25098,200.03,199.96,81.263]
[1739230698537,0.93761145,200.02,199.96,81.263]
[1739230699630,0.93761145,200.02,199.96,86.2639]
[1739230700145,5.9665309,200.04,199.97,13.41184853]
[1739230701051,5.9665309,200.04,199.97,18.41244853]
[1739230702453,5.9665309,200.04,199.97,13.41184853]
[1739230702757,5.9665309,200.04,199.97,18.41254853]
[1739230703750,0.03,200.04,199.97,18.41254853]
[1739230703947,0.03,200.04,199.97,99.61254853]
[1739230704119,0.03,200.04,199.99,13.41184853]
[1739230705430,0.03,200.04,199.98,13.41184853]
[1739230707975,0.15549,200.04,199.98,81.2]
[1739230708182,20.93759289,200.03,199.96,81.263]
[1739230708382,0.12549,200.01,199.96,81.263]
[1739230708566,0.93768967,200.0,199.96,81.263]
[1739230709239,0.93768967,200.0,199.96,0.063]
[1739230709451,0.12549,199.99,199.96,0.063]
[1739230709770,0.9377945,199.98,199.96,0.063]
[1739230710189,0.12549,199.97,199.96,0.063]
[1739230710343,5.12619,199.97,199.96,0.063]
[1739230711561,5.25168,199.97,199.96,0.063]
[1739230715296,89.35168,199.97,199.96,0.063]
[1739230715583,90.28974303,199.97,199.96,0.063]
[1739230715790,89.28974303,199.97,199.96,0.063]
[1739230717366,90.28974303,199.97,199.96,0.063]
[1739230717705,89.28974303,199.97,199.96,0.063]
[1739230717984,90.28974303,199.97,199.96,0.063]
[1739230718684,89.28974303,199.97,199.96,0.063]
[1739230719406,89.41523303,199.97,199.96,0.063]
[1739230719698,89.28974303,199.97,199.96,0.063]
[1739230719858,88.35168,199.97,199.96,0.063]
[1739230720058,89.28964089,199.97,199.96,0.063]
[1739230721870,0.12549,199.95,199.94,0.063]
[1739230722095,0.12549,199.95,199.86,81.2]
[1739230722096,20.0,199.93,199.86,81.2]
[1739230722305,20.12549,199.91,199.83,82.8037]
[1739230722502,20.12549,199.91,199.83,1.6037]
[1739230722503,0.93822509,199.9,199.83,1.6037]
[1739230724093,5.0027,199.89,199.83,1.6037]
[1739230724285,0.93826086,199.88,199.81,5.0046]
[1739230724800,5.94075291,199.9,199.82,13.41184853]
[1739230725103,0.93825291,199.9,199.82,13.41184853]
[1739230725601,20.0,199.91,199.82,13.41184853]
[1739230725991,20.93806534,199.91,199.82,13.41184853]
[1739230726196,20.93806534,199.91,199.84,13.41184853]
[1739230727308,5.0025,199.9,199.81,5.0047]
[1739230727603,0.93824434,199.89,199.81,5.0047]
[1739230727912,0.93824434,199.89,199.82,13.41184853]
[1739230728198,0.93824434,199.89,199.82,18.41604853]
[1739230728404,20.0,199.89,199.82,18.41604853]
[1739230729508,5.94037137,199.91,199.82,99.61604853]
[1739230730205,0.93810696,199.92,199.82,99.61604853]
[1739230730387,0.93810696,199.92,199.82,112.12724853]
[1739230731004,20.93801289,199.93,199.82,112.12724853]
[1739230731187,20.0,199.93,199.84,13.41184853]
[1739230732221,0.93796028,199.92,199.86,13.41184853]
[1739230732805,0.93796028,199.92,199.84,5.0039]
[1739230733105,5.93902405,199.96,199.85,15.67430304]
[1739230733311,5.93902405,199.96,199.85,96.49472853]
[1739230734202,0.03,199.93,199.86,5.0035]
[1739230738406,0.03,199.93,199.87,13.41184853]
[1739230738604,0.03,199.93,199.88,5.003]
[1739230739216,0.03,199.93,199.89,13.41184853]
[1739230739387,0.03,199.93,199.89,94.61184853]
[1739230741190,0.03,199.93,199.89,99.61434853]
[1739230743996,0.03,199.93,199.89,94.61184853]
[1739230744406,0.03,199.93,199.89,99.61454853]
[1739230746021,0.03,199.93,199.89,81.263]
[1739230746317,20.03,199.93,199.89,0.063]
[1739230746483,0.93815292,199.92,199.89,0.063]
[1739230746686,0.12549,199.91,199.89,0.063]
[1739230746942,0.93816736,199.9,199.89,0.063]
[1739230747802,5.94066736,199.9,199.89,0.063]
[1739230748121,12.21265736,199.9,199.89,0.063]
[1739230748311,13.21265736,199.9,199.89,0.063]
[1739230748487,13.21265736,199.9,199.82,0.063]
[1739230748488,0.12549,199.86,199.82,0.063]
[1739230748693,0.12549,199.84,199.82,0.063]
[1739230749018,0.93851396,199.83,199.82,0.063]
[1739230749601,5.94271396,199.83,199.82,0.063]
[1739230751212,0.93851396,199.83,199.82,0.063]
[1739230752537,5.94271396,199.83,199.82,0.063]
[1739230752998,0.93851396,199.83,199.82,0.063]
[1739230754128,1.6508,199.84,199.82,0.063]
[1739230754633,20.93841033,199.83,199.82,0.063]
[1739230757202,25.94261033,199.83,199.82,0.063]
[1739230759236,25.94261033,199.83,199.77,0.063]
[1739230759237,0.12549,199.82,199.77,0.063]
[1739230759528,20.12549,199.8,199.77,0.063]
[1739230760039,20.12549,199.8,199.79,0.0001]
[1739230760234,2.77629,199.77,199.76,0.0001]
[1739230760445,20.12549,199.73,199.69,0.063]
[1739230760609,21.06468222,199.73,199.69,0.063]
[1739230761027,22.06468222,199.73,199.69,0.063]
[1739230761338,21.77629,199.7,199.69,0.063]
[1739230761514,22.84114999,199.7,199.69,0.063]
[1739230762240,23.84114999,199.7,199.69,0.063]
[1739230762538,22.84114999,199.7,199.69,0.063]
[1739230763339,28.09962999,199.7,199.69,0.063]
[1739230765636,2.84114999,199.7,199.69,0.063]
[1739230766234,0.93936999,199.7,199.69,0.063]
[1739230766438,0.93908029,199.71,199.69,0.063]
[1739230766607,0.12549,199.7,199.69,0.063]
[1739230767728,5.13299,199.7,199.69,0.063]
[1739230770245,5.25848,199.7,199.69,0.063]
[1739230771410,25.25848,199.7,199.69,0.063]
[1739230771615,26.1976727,199.7,199.69,0.063]
[1739230773151,25.25848,199.7,199.69,0.063]
[1739230775036,20.0,199.7,199.69,0.063]
[1739230777047,5.94621394,199.72,199.69,0.063]
[1739230777760,20.0,199.7,199.69,0.063]
[1739230777916,0.93921394,199.72,199.69,0.063]
[1739230778257,0.93897481,199.73,199.69,0.063]
[1739230778746,20.0,199.72,199.69,0.063]
[1739230779949,0.93890091,199.74,199.69,0.063]
[1739230781154,0.93885686,199.75,199.69,5.0707]
[1739230781319,0.93885686,199.73,199.69,5.0707]
[1739230781935,0.93885686,199.73,199.69,0.063]
[1739230782261,0.93889734,199.74,199.69,0.063]
[1739230783755,0.96889734,199.74,199.69,0.063]
[1739230788660,5.97539734,199.74,199.69,0.063]
[1739230797557,20.0,199.72,199.69,0.063]
[1739230798359,0.96889734,199.74,199.69,0.063]
[1739230798749,0.03,199.74,199.69,0.063]
[1739230800754,0.03,199.74,199.69,13.47484853]
[1739230803070,0.03,199.74,199.69,18.48244853]
[1739230803570,0.03,199.74,199.69,13.47484853]
[1739230804983,0.03,199.74,199.7,13.41184853]
[1739230806487,0.03,199.74,199.71,5.0072]
[1739230806673,0.03,199.74,199.7,13.41184853]
[1739230810970,0.03,199.74,199.7,18.41924853]
[1739230812368,0.03,199.74,199.7,13.41184853]
[1739230813182,0.03,199.74,199.7,18.41924853]
[1739230814986,0.03,199.74,199.7,13.41184853]
[1739230818256,0.03,199.74,199.7,18.41924853]
[1739230821791,0.03,199.74,199.7,99.61924853]
[1739230832697,0.03,199.74,199.71,0.25098]
[1739230833008,0.03,199.74,199.72,13.41184853]
[1739230833198,0.03,199.74,199.73,13.7921847]
[1739230834008,0.03,199.74,199.73,18.41854853]
[1739230834987,0.03,199.74,199.73,99.86952853]
[1739230837797,0.03,199.74,199.73,99.61854853]
[1739230838600,0.03,199.74,199.73,13.41184853]
[1739230845892,0.03,199.74,199.73,18.41854853]
[1739230846603,0.03,199.74,199.73,13.41184853]
[1739230856200,0.03,199.74,199.73,18.41854853]
[1739230856518,0.03,199.74,199.73,18.66952853]
[1739230857415,0.03,199.74,199.73,99.86952853]
[1739230858196,0.03,199.74,199.73,94.61184853]
[1739230864690,0.03,199.74,199.73,99.86952853]
[1739230865396,0.03,199.74,199.73,100.12050853]
[1739230865631,0.03,199.74,199.73,102.69390853]
[1739230867725,0.03,199.74,199.73,103.69390853]
[1739230869723,5.0033,199.87,199.77,0.12549]
[1739230869927,5.0033,199.87,199.79,13.41184853]
[1739230870300,5.0033,199.87,199.78,13.41184853]
[1739230870603,0.93826581,199.86,199.78,13.41184853]
[1739230871325,5.0037,199.85,199.78,13.41184853]
[1739230873623,20.0,199.86,199.78,13.41184853]
[1739230873924,0.93832699,199.85,199.78,13.41184853]
[1739230874799,5.0037,199.85,199.78,13.41184853]
[1739230876627,0.93831379,199.84,199.78,13.41184853]
[1739230876824,20.0,199.82,199.78,13.41184853]
[1739230877002,26.0279,199.82,199.72,81.64346586]
[1739230877329,26.0279,199.82,199.73,13.41184853]
[1739230878214,2.57557771,199.81,199.72,0.063]
[1739230878730,20.0,199.77,199.72,0.063]
[1739230878915,0.93874325,199.76,199.72,0.063]
[1739230879742,5.0061,199.76,199.72,0.063]
[1739230881140,0.93873023,199.79,199.72,0.063]
[1739230881319,5.0055,199.78,199.72,0.063]
[1739230882031,20.0,199.79,199.72,0.063]
[1739230882208,25.0052,199.79,199.72,0.063]
[1739230882407,20.0,199.79,199.72,0.063]
[1739230882607,20.93851711,199.79,199.72,0.063]
[1739230883611,20.0,199.77,199.72,0.063]
[1739230884016,20.93872314,199.76,199.72,0.063]
[1739230884206,25.94492314,199.76,199.72,0.063]
[1739230886139,25.0062,199.76,199.72,0.063]
[1739230886444,20.0,199.76,199.72,0.063]
[1739230886631,5.0055,199.78,199.72,0.063]
[1739230887647,88.1052,199.79,199.72,0.063]
[1739230888744,88.1052,199.79,199.72,13.47484853]
[1739230889559,88.1052,199.79,199.72,0.063]
[1739230889737,20.0,199.76,199.72,0.063]
[1739230890236,25.94383521,199.79,199.72,0.063]
[1739230890545,20.0,199.76,199.72,0.063]
[1739230891140,20.93863521,199.79,199.72,0.063]
[1739230891433,5.0055,199.78,199.72,0.063]
[1739230891641,0.93870212,199.77,199.72,0.063]
[1739230892846,20.0,199.75,199.72,0.063]
[1739230893431,25.0064,199.75,199.72,0.063]
[1739230893634,0.93875704,199.74,199.72,0.063]
[1739230895343,5.0067,199.73,199.72,0.063]
[1739230897543,20.0,199.75,199.72,0.063]
[1739230897744,5.0065,199.74,199.72,0.063]
[1739230898938,20.0,199.75,199.72,0.063]
[1739230899147,25.0062,199.75,199.72,0.063]
[1739230901239,25.0059,199.77,199.72,0.063]
[1739230901418,20.0,199.77,199.72,0.063]
[1739230902040,0.03,199.79,199.72,0.063]
[1739230902238,5.0353,199.79,199.72,0.063]
[1739230903039,0.03,199.79,199.72,13.47484853]
[1739230903432,0.03,199.79,199.72,18.48164853]
[1739230903946,0.03,199.79,199.72,99.68164853]
[1739230904151,20.03,199.79,199.74,13.41184853]
[1739230904325,20.03,199.79,199.72,81.263]
[1739230904645,20.03,199.79,199.73,13.41184853]
[1739230908445,0.03,199.79,199.74,0.25098]
[1739230908654,0.03,199.79,199.75,0.25098]
[1739230908859,0.03,199.79,199.77,13.66282853]
[1739230910951,0.03,199.79,199.75,81.2]
[1739230911332,0.03,199.79,199.76,13.41184853]
[1739230912239,0.03,199.79,199.75,13.41184853]
[1739230912539,0.03,199.79,199.76,0.3801934]
[1739230913456,0.03,199.79,199.74,13.41184853]
[1739230913457,0.03,199.79,199.74,13.79205567]
[1739230914353,0.03,199.79,199.75,0.25098]
[1739230914662,0.03,199.79,199.76,0.38012348]
[1739230914948,0.03,199.79,199.77,13.41184853]
[1739230915156,0.03,199.79,199.73,0.063]
[1739230915451,0.03,199.79,199.74,0.38036135]
[1739230916756,0.03,199.79,199.73,13.72582853]
[1739230916953,0.03,199.79,199.73,13.47484853]
[1739230919159,20.03,199.79,199.73,0.063]
[1739230920156,5.0055,199.78,199.73,0.063]
[1739230920366,5.94411203,199.78,199.73,0.063]
[1739230921236,18.45781203,199.78,199.73,0.063]
[1739230924036,19.71075666,199.78,199.73,0.063]
[1739230924662,5.94411203,199.78,199.73,0.063]
[1739230928765,5.97411203,199.78,199.73,0.063]
[1739230932354,0.03,199.78,199.73,0.063]
[1739230933054,0.03,199.78,199.73,13.47484853]